Cogmind - Beta 13 @@@ ROGUE MODE // 2024.04.21 @ 07:26:23 Player: Zaros426 Result: Destroyed by LW-V8B(R) with Subdweller Laser Performance ------------- Evolutions (0) 0 Regions Visited (2) 400 Robots Destroyed (24) 120 Value Destroyed (530) 530 Prototype IDs (12) 240 Alien Tech Used (0) 0 Bonus (0) 0 TOTAL SCORE: 1290 Bonus ------- None Cogmind --------- Core Integrity 0/250 Matter 196/300 Energy 100/100 System Corruption 0% Temperature Cool (6) Movement Treading (160) Location -10/Subcaves Parts ------- > --- POWER (1) -------- (None) > --- PROPULSION (2) --- Light Treads Light Treads > --- UTILITY (2) ------ Large Storage Unit > --- WEAPON (2) ------- Barrage Gun Barrage Gun > --- INVENTORY (15) --- Aluminum Leg Aluminum Leg Aluminum Leg Makeshift Leg Makeshift Leg Large Storage Unit High-capacity Storage Unit Subdweller Optics Sensor Array Signal Interpreter Signal Interpreter Improved Terrain Scanner Gun Armor Makeshift System Restoration Module Riot Gun Peak State ------------ > --- POWER ------------ Subdweller Power Source > --- PROPULSION ------- Makeshift Leg Makeshift Leg > --- UTILITY ---------- Large Storage Unit Targeting Computer > --- WEAPON ----------- Barrage Gun Barrage Gun > --- INVENTORY -------- Light Treads Light Treads Aluminum Leg Aluminum Leg Aluminum Leg Large Storage Unit High-capacity Storage Unit Subdweller Optics Sensor Array Signal Interpreter Signal Interpreter Improved Terrain Scanner Gun Armor Makeshift System Restoration Module Riot Gun [Rating: 21] Favorites ----------- Power Light Ion Engine Engine Light Ion Engine Propulsion Aluminum Leg Treads Light Treads Leg Aluminum Leg Utility Large Storage Unit Device Seismic Detector Storage Large Storage Unit Processor Targeting Computer Weapon Barrage Gun Energy Gun Medium Laser Ballistic Gun Barrage Gun Launcher Grenade Launcher Build | -11 -10 -10 ------- Run | Yrd Mat Sub Slots Evolved . | . . . Power . | . . . Propulsion . | . . . Utility . | . . . Weapon . | . . . Parts Attached 26 | 6 10 10 Power 6 | 1 1 4 Engine 6 | 1 1 4 Core . | . . . Reactor . | . . . Propulsion 11 | 2 5 4 Treads 4 | . 2 2 Leg 7 | 2 3 2 Wheel . | . . . Hover . | . . . Flight . | . . . Utility 4 | 2 2 . Device 1 | 1 . . Storage 2 | 1 1 . Processor 1 | . 1 . Hackware . | . . . Protection . | . . . Artifact . | . . . Weapon 5 | 1 2 2 Energy Gun 1 | 1 . . Energy Cannon . | . . . Ballistic Gun 3 | . 1 2 Ballistic Cannon . | . . . Launcher 1 | . 1 . Special Weapon . | . . . Impact Weapon . | . . . Slashing Weapon . | . . . Piercing Weapon . | . . . Special Melee Weapon . | . . . Unidentified Prototypes . | . . . Parts Lost 6 | . 3 3 Power 1 | . . 1 Propulsion 1 | . 1 . Utility 2 | . 1 1 Weapon 2 | . 1 1 Highest Loss Streak 2 | . 2 2 To Critical Strikes . | . . . Average Slot Usage (%) 90 | . 88 92 Engine 12 | . 14 11 Treads 5 | . . 8 Leg 22 | . 27 19 Device 3 | . 8 . Storage 14 | . 14 14 Processor 7 | . 2 11 Energy Gun 3 | . 8 . Ballistic Gun 15 | . 2 24 Launcher 4 | . 8 1 Naked Turns . | . . . Heaviest Build 31 | 11 29 31 Greatest Support 40 | 20 40 40 Greatest Overweight (x) 2 | . 2 . Average Overweight (x) . | . . . Largest Inventory Capacity 15 | 8 15 15 Average Capacity 13 | 6 12 15 Most Carried 15 | 3 11 15 Average Carried 11 | 2 8 13 Final Capacity 15 | 8 15 15 Final Carried 15 | 3 9 15 Class Distribution -------------------- 71% | Mutant 28% | Derelict-Mutant Dominant Class ---------------- Mutant | -10/Materials Derelict-Mutant | -10/Subcaves Resources | -11 -10 -10 ----------- Run | Yrd Mat Sub Matter Collected 916 | 214 140 562 Remotely . | . . . Salvage Created 863 | 22 437 404 Parts 69 | 6 34 29 Haulers Intercepted . | . . . Recyclers Shooed . | . . . Parts Field Recycled . | . . . Retrieved Matter . | . . . Parts Self-Destructed 6 | . . 6 Prevented 4 | . . 4 Kills | -11 -10 -10 ------- Run | Yrd Mat Sub Combat Hostiles Destroyed 16 | . 10 6 Guns 12 | . 7 5 AOE 3 | . 3 . Classes Destroyed 8 | 1 6 1 Worker 1 | . 1 . Builder 1 | . 1 . Tunneler 2 | 1 1 . Recycler 2 | . 2 . Watcher 2 | . 2 . Swarmer 6 | . 6 . Grunt 5 | . 4 1 Subdweller 5 | . . 5 Best Kill Streak 5 | 1 5 2 Combat Bots Only 3 | . 3 2 Max Kills in Single Turn 2 | 1 2 1 Gunslinging . | . . . Exploded 1 | . 1 . Melee . | . . . Uniques/NPCs Destroyed . | . . . Combat | -11 -10 -10 -------- Run | Yrd Mat Sub Hostile Shots Fired 92 | . 61 31 Missed 26 | . 18 8 Damage Taken 1044 | . 518 526 Core 250 | . 149 101 Absorbed by Shields . | . . . Core Remaining (%) 100 | 100 . . Volleys Fired 136 | 8 59 69 Largest 2 | 1 2 2 Hottest 56 | 50 50 56 Shots Fired 191 | 8 61 122 Gun 181 | 8 51 122 Cannon . | . . . Launcher 10 | . 10 . Special . | . . . Kinetic 125 | . 3 122 Thermal 56 | 8 48 . Explosive 10 | . 10 . Electromagnetic . | . . . Robot Hit Streak 52 | 3 16 52 Robot Miss Streak 3 | 2 3 2 Penetration Max . | . . . Secondary Targets 1 | . . 1 Max Gunslinging Chain 1 | . . 1 Shots Hit Robots 126 | 5 43 78 Core Hits 41 | 1 24 16 Critical Kills 1 | . . 1 Critical Parts Destroyed . | . . . Critical Strikes 3 | 1 1 1 Burn 2 | 1 1 . Destroy 1 | . . 1 Melee Attacks . | . . . Impact . | . . . Slashing . | . . . Piercing . | . . . Sneak Attacks . | . . . Combat Hostiles . | . . . Follow-up Attacks . | . . . Damage Inflicted 2232 | 64 914 1254 Guns 1789 | 64 471 1254 Cannons . | . . . Explosions 443 | . 443 . Melee . | . . . Ramming . | . . . Kinetic 1254 | . . 1254 Thermal 535 | 64 471 . Explosive 443 | . 443 . Electromagnetic . | . . . Impact . | . . . Slashing . | . . . Piercing . | . . . Highest Corruption . | . . . Average Corruption . | . . . Corruption Purged . | . . . Corruption Blocked . | . . . Overload Shots . | . . . Overflow Damage 17 | . 17 . Projectiles . | . . . Explosions 17 | . 17 . Melee . | . . . Knockbacks . | . . . Impact . | . . . Kinetic . | . . . Secondary . | . . . Self-Inflicted Damage 87 | . 87 . Shots 4 | . 4 . Rammed . | . . . Targets Rammed . | . . . Kicked . | . . . Crushed . | . . . Highest Temperature 134 | 60 134 . Average Temperature 41 | 25 43 . Received Heat Transfer 189 | . 105 84 Siege Activations . | . . . Robots Corrupted . | . . . Combat Hostiles . | . . . Parts Fried . | . . . Impact Corruptions . | . . . Robots Melted . | . . . Combat Hostiles . | . . . Parts Melted 4 | . 4 . Heat Transferred 1665 | 259 1406 . Parts Sabotaged . | . . . Parts Stolen . | . . . Parts Stripped . | . . . Power Chain Reactions . | . . . Alert | -11 -10 -10 ------- Run | Yrd Mat Sub Peak Influence 223 | 5 223 . Initial 3 | . 3 . Average 88 | 1 98 . Maximum Alert Level 1 | . 1 . Low Security (%) 80 | 100 78 . Level 1 19 | . 21 . Level 2 . | . . . Level 3 . | . . . Level 4 . | . . . Level 5 . | . . . High Security . | . . . Max Security . | . . . Squads Dispatched 2 | . 2 . Investigation 1 | . 1 . Extermination . | . . . Reinforcement 1 | . 1 . Assault . | . . . Garrison . | . . . Intercept . | . . . Searches Triggered . | . . . Construction Impeded . | . . . Haulers Reinforced . | . . . Active Scanning Responses . | . . . Cargo Convoy Interrupts . | . . . Stealth | -11 -10 -10 --------- Run | Yrd Mat Sub Distress Signals 1 | . 1 . Communications Jammed . | . . . Distress Signals . | . . . Times Spotted 21 | . 14 7 Peak Tracking Total 3 | . 3 2 Tactical Retreats . | . . . Traps | -11 -10 -10 ------- Run | Yrd Mat Sub Traps Triggered 2 | . 1 1 Indirectly . | . . . Trap Hack Attempts . | . . . Triggered . | . . . Disarmed . | . . . Reprogrammed . | . . . Reused . | . . . Traps Extracted . | . . . Installed . | . . . Triggered 1 | . . 1 Machines | -11 -10 -10 ---------- Run | Yrd Mat Sub Machines Disabled 2 | . 1 1 Max in Single Turn 1 | . 1 1 Machines Repaired . | . . . Machines Dismantled . | . . . Machines Sabotaged . | . . . Overloaded Fab Kills . | . . . Hacking | -11 -10 -10 --------- Run | Yrd Mat Sub Machines Accessed 6 | . 5 1 Terminals 5 | . 5 . Fabricators . | . . . Repair Stations . | . . . Recycling Units . | . . . Scanalyzers . | . . . Garrison Access . | . . . Total Hacks 21 | . 12 9 Successful 12 | . 3 9 Failed 8 | . 8 . Catastrophic . | . . . Database Lockouts 1 | . 1 . Manual 10 | . 8 2 Terminals 12 | . 12 . Fabricators . | . . . Repair Stations . | . . . Recycling Units . | . . . Scanalyzers . | . . . Garrison Access . | . . . Terminal Hacks 12 | . 3 9 Record 8 | . . 8 Robot Analysis 2 | . 2 . Prototype ID Bank 1 | . 1 . Derelict Proto ID Bank 1 | . . 1 Fabricator Hacks . | . . . Repair Station Hacks . | . . . Recycling Unit Hacks . | . . . Scanalyzer . | . . . Garrison Access Hacks . | . . . Unauthorized Hacks . | . . . Terminals . | . . . Fabricators . | . . . Repair Stations . | . . . Recycling Units . | . . . Scanalyzers . | . . . Garrison Access . | . . . Data Cores Recovered . | . . . Used . | . . . Hacking Detections 4 | . 4 . Full Trace Events 2 | . 2 . Feedback Events . | . . . Feedback Blocked . | . . . Robot Schematics Acquired . | . . . Robots Built . | . . . Authchips . | . . . Time . | . . . Total Robot Build Rating . | . . . Part Schematics Acquired . | . . . Parts Built . | . . . Authchips . | . . . Time . | . . . Total Part Build Rating . | . . . Parts Repaired . | . . . Time . | . . . Parts Recycled . | . . . Recycled Matter . | . . . Retrieved Matter . | . . . Retrieved Components . | . . . Parts Scanalyzed . | . . . Part Schematics Acquired . | . . . Parts Damaged . | . . . Bothacking | -11 -10 -10 ------------ Run | Yrd Mat Sub Used RIF Installer . | . . . Robots Hacked . | . . . Non-combat . | . . . Combat . | . . . Robot Hacks Applied . | . . . Relay Couplers Released . | . . . Fabnet Peak Effective % . | . . . Robots Rewired . | . . . Allies Hacked . | . . . Hacks Repelled . | . . . Allies | -11 -10 -10 -------- Run | Yrd Mat Sub Total Allies . | . . . Largest Group . | . . . Highest-Rated Group . | . . . Highest-Rated Ally . | . . . Total Orders . | . . . Ally Attacks . | . . . Total Damage . | . . . Kills . | . . . Allies Corrupted . | . . . Allies Melted . | . . . Intel | -11 -10 -10 ------- Run | Yrd Mat Sub Robot Analysis Total 2 | . 2 . Derelict Logs Recovered 1 | . . 1 Drone Launches . | . . . Drone Recoveries . | . . . Exploration | -11 -10 -10 ------------- Run | Yrd Mat Sub Turns Passed 2320 | 98 918 1304 Spaces Moved 1270 | 59 467 744 Core 5 | 5 . . Treads 219 | . 1 218 Legs 1046 | 54 466 526 Wheels . | . . . Hover . | . . . Flight . | . . . Fastest Speed 50 | 50 120 140 Average Speed 149 | 114 159 145 Slowest Speed 260 | 120 260 160 Overloaded Moves . | . . . Propulsion Burnouts . | . . . Robots Hopped . | . . . Cave-ins Triggered . | . . . Exploration Rate (%) 40 | 4 78 38 Regions Visited 2 Branch Regions 1 Pre-discovered Areas . | . . . Known Exits Taken . | . . . Unknown Exits Taken 2 | 1 1 . Scrap Searched 3 | . . 3 Spaces Dug . | . . . Terrain Destroyed 31 | . 31 . Melee . | . . . Projectile . | . . . AOE 31 | . 31 . Terrain Rammed . | . . . Walls Destroyed . | . . . Machines Disabled . | . . . Actions | -11 -10 -10 --------- Run | Yrd Mat Sub Total 1508 | 78 578 852 Wait 51 | 3 31 17 Move 1268 | 58 466 744 Hop . | . . . Pick Up 18 | 3 8 7 Fast Attach 11 | 6 2 3 Attach 3 | . 2 1 Detach . | . . . Swap 12 | . 6 6 Drop 9 | . 4 5 Fire 136 | 8 59 69 Melee . | . . . Ram . | . . . Kick . | . . . Crush . | . . . Escape Stasis . | . . . Rewire . | . . . Trap . | . . . Miscellaneous . | . . . Route ------- -11/Scrapyard -10/Materials (discovered 4 exits: [*Mat x2] / [*Min] / *Sub) -10/Subcaves (discovered 2 exits: [*Mat x2]) History --------- Turn | Location | Event 7 | -11/Scrapyard | Discovered new exit (range 14) 99 | -11/Scrapyard | Entered Materials 315 | -10/Materials | Build established: Mutant 317 | -10/Materials | Discovered new exit (range 13) 742 | -10/Materials | Discovered new exit (range 8) 837 | -10/Materials | Central database locked down 896 | -10/Materials | Core integrity fell below 50% 919 | -10/Materials | Discovered new exit (range 9) 997 | -10/Materials | Discovered new exit (range 8) 1017 | -10/Materials | Entered Subcaves 1263 | -10/Subcaves | Discovered new exit (range 12) 1520 | -10/Subcaves | Learned Materials trap positions 1557 | -10/Subcaves | Visited 4L-MR0's lab 1589 | -10/Subcaves | Found Gun Armor 1656 | -10/Subcaves | Discovered new exit (range 7) 1820 | -10/Subcaves | A swath of the cavern ceiling suddenly collapsed 1831 | -10/Subcaves | Build established: Derelict-Mutant 2100 | -10/Subcaves | Core integrity fell below 20% 2321 | -10/Subcaves | Destroyed by LW-V8B(R) with Subdweller Laser Last Messages --------------- 01983_ Subatomizers dissect the Disposable Heat Sink. 01983_ Dropped Broken Sub. Power Source. 01984_ Acquired Lgt. Ion Engine. 01998_ Subatomizers dissect the Disposable Heat Sink. 02071_ Targeting Computer destroyed. 02076_ 4O-36Z(R) destroyed. 02076_ Switching to secondary target: 9L-WR5(R). 02080_ 9L-WR5(R) affixes Scrap Shield Fragment to Scrap Shield. 02101_ Lgt. Ion Engine destroyed. 02104_ 9L-WR5(R) destroyed. 02107_ Acquired 51 matter. 02108_ Acquired 34 matter. 02128_ Acquired 48 matter. 02192_ Subatomizers dissect the Sub. Power Source. 02212_ P8-YYX(R) affixes Scrap Shield Fragment to Scrap Shield. 02217_ P8-YYX(R) destroyed. 02219_ Subatomizers dissect the Disposable Heat Sink. 02221_ Acquired 57 matter. 02229_ Subatomizers dissect the Disposable Heat Sink. 02244_ Acquired 10 matter. Map ----- +----------------------------------------------------+ | ??????????????????????????# #"""##"####""" | | ??????????????????????????##"#"""## "#"#""" ## | | ???????????????????????????#####""## ##""####### | | ?????????????????????????????# ##"## ######????### | | ????????????????????????? ???###"##"##???????????# | | ????????????????????? ###""#"# #????????????? | | ??????????????????????? #"""""#####????????????? | | ???????????????????? "###"#????????????????? | | ???????????????? ## # #"##????????????????? | | ???????????????????????# ###??????????????????? | | ??????????????????????# """?????????????????? | | ???????????????????????? ""#?????????????????? | | ????????????????????????? """" ???????????????? | | ?????????????????????????? """"#???????????????? | | ??????????????????????????# """##??? ????????? | | ??????????????????????????# """"##?#"""????????? | | ??????????????????????????# ""###""""???????? | | ??????????????????????????# ""## #???????? | | ????????????????????????### "" "######### | | ???????????????????????## """#" # | | ??????????????????????## """" | | ??????????????????????# # ##" " | | ?????????????????????## #######??## # ### ## | | ?????????????????????# R####?????????#####?#####? | | ?????????????????????# #???????##?????????????? | | ?????????????????????## @##?????# ###???????????? | | ????????????????????### #?????#"""###?????????? | | ????????????????????# ##????##"" " #?????????? | | ????????????????????## #????## " #????####?? | | ?????????????????????## ##??## #????#""### | | ??????????????????????## #### #??#### ""# | | ???????????????????????# #???### " | | ???????????????????????# # # # ##### "" | | ?????????????????????? # ##### """" | | ?????????????????????### # #???## " | | ???????????????????????#####????# #### " | | ????????????????????????????????### ##??#### " | | ??????????????????????????????????## ##??????# " # | | ???????????????????????????????????###?????? ## | | ?????????????????????????????????????????? #? | | ????????????????????????????????????????? ## #? | | ???????????????????????????????????????? ??## ##? | | ???????????????????????????????????????# ????###?? | | ???????????????????????????????????????#?????????? | | ?????????????????????????????????????????????????? | | ?????????????????????????????????????????????????? | | ?????????????????????????????????????????????????? | | ?????????????????????????????????????????????????? | | ?????????????????????????????????????????????????? | | ?????????????????????????????????????????????????? | +----------------------------------------------------+ Best States ------------- Heat Dissipation 25 Energy Generation 15 Energy Capacity 200 Matter Stores 300 Matter Capacity 300 Sight Range 16 Terrain Scan Density 10 Evasion (%) 55 Targeting Accuracy 5 Recoil Reduction 2 Item Schematics ----------------- None Robot Schematics ------------------ None Fabricated ------------ Nothing Alien Tech Used ----------------- None Achievements -------------- None Challenges ------------ None Game ------ Seed EfficiencyPointShotgun Manual? 0 Play Time 00:21:28 Cumulative 62.4 hours Start 2024.04.21 @ 07:07:25 End 2024.04.21 @ 07:26:23 Sessions 1 Manual Loads 0 Difficulty Rogue Special Mode None Game No. 67 Rogue 67 Adventurer 0 Explorer 0 Win Type - Total 0 Types 0/0/0/0/0/0/0/0/0 Lore% 31 Gallery% 48 Achievement% 32 Wizard Run 0 Options --------- Layout 0 ASCII 0 Keyboard 0 Movement Mouse Keybinds 0 Fullscreen 2 Font 24/Smallcaps Map View 183x50 Zoom Use 0% Tactical HUD 1 Map Filters NONE Filters NONE Steam 0 RUN: e37886c1-4efe-49a4-8020-4a91b4fee714